bitfinex-derivatives/quotes_SOLF0:USTF0_20250101
["timestamp","ask_amount","ask_price","bid_price","bid_amount"]
[1735690161324,2.6363,190.11,190.1,8.5245961]
[1735690161623,3.42703088,190.11,190.1,8.5245961]
[1735690163521,0.79073088,190.11,190.03,3.9926]
[1735690163820,0.79073088,190.1,190.09,8.5245961]
[1735690164013,0.79066998,190.1,190.09,8.5245961]
[1735690164215,3.42706998,190.1,190.09,8.5245961]
[1735690166618,3.42676023,190.1,190.09,8.5245961]
[1735690166827,2.6368,190.08,190.04,3.12]
[1735690167015,2.6368,190.08,190.07,8.5245961]
[1735690167220,3.42712177,190.08,190.07,8.5245961]
[1735690167921,0.79032177,190.08,190.07,8.5245961]
[1735690169028,0.79032177,190.08,190.07,11.1614961]
[1735690169227,1.8896,190.14,190.07,11.1614961]
[1735690169424,0.79035837,190.13,190.11,8.5245961]
[1735690170325,0.79035837,190.12,190.11,8.5245961]
[1735690170522,86.82821097,190.16,190.11,8.5245961]
[1735690170730,86.82821097,190.16,190.15,8.5245961]
[1735690171229,89.46391097,190.16,190.15,8.5245961]
[1735690171417,90.24836786,190.16,190.15,8.5245961]
[1735690171624,3.42015689,190.16,190.15,8.5245961]
[1735690171917,3.41991821,190.16,190.15,8.5245961]
[1735690173427,3.41984425,190.16,190.15,8.5245961]
[1735690174619,3.41983937,190.16,190.15,8.5245961]
[1735690175226,3.41995806,190.16,190.15,8.5245961]
[1735690176924,0.78425806,190.16,190.03,3.9926]
[1735690177231,13.6082961,190.2,190.04,17.07954501]
[1735690177232,2.6363,190.11,190.04,17.07954501]
[1735690177528,0.78426464,190.1,190.04,3.12]
[1735690177824,0.78426464,190.1,190.07,2.6367]
[1735690178227,3.42066464,190.1,190.07,2.6367]
[1735690178429,2.6364,190.1,190.07,2.6367]
[1735690178727,2.6364,190.1,190.09,8.5245961]
[1735690178928,3.42070613,190.1,190.09,8.5245961]
[1735690179729,2.6364,190.1,190.09,8.5245961]
[1735690179931,3.42066708,190.1,190.09,8.5245961]
[1735690181130,2.6363,190.11,190.09,8.5245961]
[1735690181328,2.6363,190.11,190.1,8.5245961]
[1735690181530,3.42058064,190.11,190.1,8.5245961]
[1735690182425,0.78428064,190.11,190.07,8.5245961]
[1735690182631,0.78428064,190.1,190.07,8.5245961]
[1735690182825,2.6366,190.08,190.07,8.5245961]
[1735690183033,3.42088064,190.08,190.07,8.5245961]
[1735690183331,0.78428234,190.08,190.07,8.5245961]
[1735690184534,2.6365,190.1,190.07,11.1613961]
[1735690184832,2.6365,190.1,190.09,8.5245961]
[1735690185030,3.42084845,190.1,190.09,8.5245961]
[1735690189440,0.78434845,190.1,190.09,8.5245961]
[1735690190338,2.6362,190.11,190.09,8.5245961]
[1735690190532,0.78443812,190.1,190.09,8.5245961]
[1735690190935,3.42083812,190.1,190.09,8.5245961]
[1735690191130,3.42082062,190.1,190.09,8.5245961]
[1735690192730,3.42082062,190.1,190.07,2.6368]
[1735690192937,3.42082062,190.1,190.09,8.5245961]
[1735690192938,2.6364,190.1,190.09,8.5245961]
[1735690193136,3.42063609,190.1,190.09,8.5245961]
[1735690195735,3.42041394,190.1,190.09,8.5245961]
[1735690198342,2.6364,190.1,190.09,8.5245961]
[1735690198642,3.42036632,190.1,190.09,8.5245961]
[1735690200943,3.42045793,190.1,190.09,8.5245961]
[1735690202944,2.6364,190.1,190.09,8.5245961]
[1735690203243,3.42085948,190.1,190.09,8.5245961]
[1735690204442,0.78445948,190.1,190.09,8.5245961]
[1735690204645,3.42085948,190.1,190.09,8.5245961]
[1735690206844,86.82821097,190.17,190.09,11.6445961]
[1735690207050,86.82821097,190.17,190.15,8.5245961]
[1735690207839,1.9637,190.2,190.15,8.5245961]
[1735690208045,2.6357,190.16,190.15,8.5245961]
[1735690210248,2.6352,190.19,190.15,8.5245961]
[1735690210453,1.9637,190.2,190.15,8.5245961]
[1735690210849,2.6356,190.16,190.15,8.5245961]
[1735690214353,86.82821097,190.22,190.12,54.78]
[1735690214553,95.35280707,190.22,190.15,5.36145968]
[1735690214758,2.6353,190.18,190.14,8.5245961]
[1735690214960,8.5245961,190.22,190.14,8.5245961]
[1735690215659,8.5245961,190.22,190.14,11.6445961]
[1735690216859,2.6354,190.18,190.14,11.6445961]
[1735690217855,3.7491,190.23,190.14,11.6445961]
[1735690218155,2.6355,190.17,190.14,11.6445961]
[1735690219852,8.5245961,190.22,190.14,11.6445961]
[1735690220058,2.6356,190.16,190.14,11.6445961]
[1735690221054,2.6356,190.16,190.14,8.5245961]
[1735690221257,2.6356,190.16,190.15,3.12]
[1735690223354,3.7491,190.23,190.15,3.12]
[1735690223560,1.9275,190.23,190.2,8.5245961]
[1735690223959,2.6347,190.22,190.2,8.5245961]
[1735690224759,2.6346,190.24,190.2,11.6445961]
[1735690224960,55.72822075,190.27,190.22,8.5245961]
[1735690225164,55.72822075,190.27,190.24,8.5245961]
[1735690225862,88.77031097,190.3,190.24,8.5245961]
[1735690226766,1.9421,190.3,190.24,8.5245961]
[1735690226966,2.634,190.28,190.24,8.5245961]
[1735690227169,1.9421,190.3,190.26,8.5245961]
[1735690227963,2.6337,190.3,190.26,8.5245961]
[1735690228163,1.99511337,190.32,190.26,8.5245961]
[1735690228760,2.6337,190.3,190.26,8.5245961]
[1735690228961,1.99511337,190.32,190.27,2.6339]
[1735690229371,1.99511337,190.32,190.27,5.7539]
[1735690229565,1.99511337,190.32,190.27,3.12]
[1735690230969,2.6337,190.3,190.27,3.12]
[1735690231173,1.99511337,190.32,190.26,11.6445961]
[1735690233177,2.634,190.27,190.26,11.6445961]
[1735690233372,2.634,190.27,190.26,8.5245961]
[1735690233671,8.5245961,190.3,190.23,11.6445961]
[1735690233877,2.6344,190.25,190.23,11.6445961]
[1735690235373,1.9683,190.29,190.23,11.6445961]
[1735690235979,2.6343,190.26,190.23,11.6445961]
[1735690236777,1.9683,190.29,190.23,11.6445961]
[1735690237774,1.9683,190.29,190.03,34.45987323]
[1735690237966,8.5245961,190.28,190.21,8.5245961]
[1735690238171,2.6348,190.22,190.21,8.5245961]
[1735690238374,3.8155,190.29,190.21,8.5245961]
[1735690238567,3.8155,190.29,190.24,8.5245961]
[1735690238876,2.6343,190.26,190.24,8.5245961]
[1735690240179,3.8155,190.29,190.24,8.5245961]
[1735690240379,3.8155,190.29,190.22,8.5245961]
[1735690240778,8.5245961,190.28,190.22,8.5245961]
[1735690241476,8.5245961,190.26,190.11,3.8334]
[1735690241681,8.5245961,190.24,190.18,8.5245961]
[1735690241980,2.635,190.2,190.18,8.5245961]
[1735690242371,2.635,190.2,190.12,3.12]
[1735690242770,2.635,190.2,190.18,8.5245961]
[1735690243373,8.5245961,190.24,190.18,8.5245961]
[1735690243571,8.5245961,190.22,190.11,3.8334]
[1735690243772,1.8121,190.21,190.15,8.5245961]
[1735690243972,8.5245961,190.2,190.13,3.12]
[1735690244178,8.5245961,190.2,190.14,8.5245961]
[1735690244482,2.6355,190.16,190.14,8.5245961]
[1735690244682,8.5245961,190.2,190.14,8.5245961]
[1735690244883,1.8121,190.21,190.16,8.5245961]
[1735690246480,2.6354,190.17,190.16,8.5245961]
[1735690248085,8.5245961,190.18,190.11,3.12]
[1735690248283,8.5245961,190.18,190.12,8.5245961]
[1735690248886,2.636,190.13,190.12,8.5245961]
[1735690249582,2.6363,190.11,190.1,8.5245961]
[1735690250288,2.6363,190.11,190.06,5.7568]
[1735690250476,8.5245961,190.16,190.03,3.8675]
[1735690250477,8.5245961,190.14,190.03,3.8675]
[1735690250684,1.9336,190.13,190.06,8.5245961]
[1735690250876,8.5245961,190.12,189.97,1.2279]
[1735690251078,8.5245961,190.1,189.98,1.8233]
[1735690251285,8.5245961,190.08,190.02,8.5245961]
[1735690252089,2.6373,190.03,190.02,8.5245961]
[1735690253680,2.6376,190.01,189.93,3.7055]
[1735690253893,8.5245961,190.02,189.97,8.5245961]
[1735690254094,8.5245961,190.02,189.93,3.7055]
[1735690254095,8.5245961,190.02,189.95,8.5245961]
[1735690254389,2.6383,189.96,189.95,8.5245961]
[1735690257289,1.9605,190.03,189.95,8.5245961]
[1735690257589,1.9605,190.03,190.01,8.5245961]
[1735690257789,2.6376,190.01,189.99,8.5245961]
[1735690258588,2.6376,190.01,189.96,5.7582]
[1735690258790,1.9605,190.03,189.96,3.12]
[1735690258987,2.6373,190.01,190.0,8.5245961]
[1735690260196,4.5977,190.03,190.0,8.5245961]
[1735690260387,2.6372,190.03,190.0,8.5245961]
[1735690260592,1.8135,190.1,190.02,8.5245961]
[1735690260792,2.6368,190.05,190.04,8.5245961]
[1735690261791,2.637,190.04,190.02,8.5245961]
[1735690261992,10.3380961,190.1,190.02,8.5245961]
[1735690262193,8.5245961,190.08,190.01,3.12]
[1735690262697,8.5245961,190.06,190.0,8.5245961]
[1735690263991,2.6373,190.02,190.0,8.5245961]
[1735690264191,8.5245961,190.06,190.0,8.5245961]
[1735690264495,8.5245961,190.08,190.0,8.5245961]
[1735690264707,8.5245961,190.08,190.02,8.5245961]
[1735690265392,2.6374,190.01,190.0,8.5245961]
[1735690271100,2.6369,190.05,190.0,8.5245961]
[1735690271300,2.6369,190.05,190.04,8.5245961]
[1735690272796,2.6367,190.06,190.04,8.5245961]
[1735690273800,2.6367,190.06,190.02,3.12]
[1735690273801,2.637,190.03,190.02,3.12]
[1735690274105,2.637,190.03,190.02,11.6445961]
[1735690274297,2.6369,190.04,190.02,11.6445961]
[1735690274503,1.8135,190.1,190.03,8.5245961]
[1735690275202,10.3380961,190.1,190.03,8.5245961]
[1735690275403,2.6368,190.05,190.03,8.5245961]
[1735690275803,10.3380961,190.1,190.03,8.5245961]
[1735690275997,2.6372,190.03,190.01,8.5245961]
[1735690276899,2.6371,190.03,190.01,8.5245961]
[1735690277405,2.6372,190.02,190.01,8.5245961]
[1735690278620,1.8135,190.1,189.99,11.6445961]
[1735690278621,2.6375,190.0,189.99,11.6445961]
[1735690278913,2.6375,190.0,189.99,8.5245961]
[1735690283720,5.2722,190.11,189.99,8.5245961]
[1735690283721,86.82821097,190.15,189.99,8.5245961]
[1735690283928,8.5245961,190.13,190.05,8.5245961]
[1735690284619,2.6364,190.08,190.05,8.5245961]
[1735690285722,8.5245961,190.13,190.05,8.5245961]
[1735690285923,1.9847,190.16,190.07,8.5245961]
[1735690286123,1.9847,190.16,190.11,8.5245961]
[1735690286429,2.6356,190.14,190.11,8.5245961]
[1735690287225,2.6357,190.13,190.11,8.5245961]
[1735690287426,2.6357,190.13,190.09,8.5245961]
[1735690288221,2.6357,190.13,190.08,2.6363]
[1735690288729,2.6358,190.12,190.08,2.6363]
[1735690288928,1.9847,190.16,190.07,13.31578678]
[1735690289222,2.6364,190.08,190.05,3.12]
[1735690290223,1.9847,190.16,190.05,3.12]
[1735690290427,13.31578678,190.14,190.02,3.12]
[1735690290725,4.9757,190.13,190.02,3.12]
[1735690291127,4.9757,190.13,190.01,16.43578678]
[1735690291331,13.31578678,190.11,190.01,16.43578678]
[1735690292527,2.6369,190.05,190.01,16.43578678]
[1735690292830,2.6369,190.05,190.01,13.31578678]
[1735690293129,13.31578678,190.11,190.01,13.31578678]
[1735690293731,13.31578678,190.11,189.99,3.12]
[1735690293929,13.31578678,190.11,189.99,5.7576]
[1735690294231,13.31578678,190.11,189.99,3.12]
[1735690294433,1.8066,190.1,189.99,3.12]
[1735690294831,2.6372,190.03,189.99,3.12]
[1735690295030,3.12,190.08,189.98,13.31578678]
[1735690295230,1.8939,190.07,189.97,1.9378]
[1735690295425,2.6376,190.0,189.97,1.9378]
[1735690295633,1.8939,190.07,189.95,15.95388678]
[1735690296532,1.8939,190.07,189.96,2.6379]
[1735690296734,2.6374,190.01,189.96,2.6379]
[1735690298030,1.8939,190.07,189.96,2.6379]
[1735690298231,2.6375,190.0,189.96,2.6379]
[1735690300038,2.6375,190.0,189.95,13.31578678]
[1735690300936,1.8939,190.07,189.95,13.31578678]
[1735690301127,2.6377,189.99,189.95,13.31578678]
[1735690301332,2.6377,189.99,189.95,15.95398678]
[1735690303136,1.8939,190.07,189.95,15.95398678]
[1735690303336,2.637,190.04,190.0,2.6375]
[1735690303537,1.8939,190.07,190.01,13.31578678]
[1735690303730,1.8066,190.1,190.01,16.43578678]
[1735690304227,2.6368,190.06,190.01,5.7573]
[1735690304534,2.6364,190.08,190.01,19.07308678]
[1735690304739,1.8066,190.1,190.01,19.07308678]
[1735690306338,1.8066,190.1,189.99,1.8901]
[1735690306543,13.31578678,190.08,189.95,16.43578678]
[1735690306840,2.6374,190.01,189.96,2.638]
[1735690307339,3.12,190.06,189.96,2.638]
[1735690307539,2.6375,190.0,189.96,2.638]
[1735690307944,2.6378,189.98,189.94,2.6383]
[1735690308141,2.6378,189.98,189.94,5.7583]
[1735690308745,2.6379,189.97,189.94,3.12]
[1735690309347,2.6381,189.96,189.93,13.31578678]
[1735690311139,2.6382,189.95,189.93,13.31578678]
[1735690311947,1.8839,190.04,189.93,13.31578678]
[1735690312145,1.8839,190.04,189.91,3.12]
[1735690312647,2.6385,189.93,189.91,3.12]
[1735690315547,3.12,190.0,189.91,3.12]
[1735690316241,1.8839,190.04,189.91,5.7582]
[1735690316444,1.8839,190.04,189.96,13.31578678]
[1735690316641,1.8839,190.04,189.96,16.43578678]
[1735690316838,144.7136849,190.08,190.01,2.6369]
[1735690316839,86.82821097,190.08,190.01,2.6369]
[1735690317743,1.93,190.09,189.99,13.31578678]
[1735690317950,1.93,190.09,190.02,15.95238678]
[1735690318150,1.93,190.09,190.02,13.31578678]
[1735690318545,1.93,190.09,190.02,15.95238678]
[1735690318847,1.93,190.09,190.02,13.31578678]
[1735690319249,13.31578678,190.14,190.02,13.31578678]
[1735690319453,1.9026,190.15,190.02,13.31578678]
[1735690319745,5.0226,190.15,190.03,2.6364]
[1735690319949,2.6358,190.09,190.03,2.6364]
[1735690320343,1.9026,190.15,190.05,13.31578678]
[1735690320749,1.9026,190.15,190.06,3.12]
[1735690321349,2.6352,190.13,190.06,3.12]
[1735690321553,1.9026,190.15,190.06,3.12]
[1735690322055,2.6357,190.1,190.06,3.12]
[1735690322258,1.9026,190.15,190.06,3.12]
[1735690322557,13.31578678,190.14,190.02,13.31578678]
[1735690322854,13.31578678,190.14,190.03,3.12]
[1735690323056,2.6362,190.06,190.03,3.12]
[1735690325455,13.31578678,190.14,190.03,3.12]
[1735690325758,13.31578678,190.14,190.02,13.31578678]
[1735690326152,13.31578678,190.14,190.01,3.12]
[1735690326749,13.31578678,190.14,189.98,1.9924]
[1735690326750,13.31578678,190.11,189.96,13.31578678]
[1735690326956,13.31578678,190.08,189.97,5.0416]
[1735690327159,16.41578678,190.08,189.97,5.0416]
[1735690327654,2.6369,190.01,189.97,5.0416]
[1735690328655,2.6369,190.01,189.97,7.679]
[1735690328855,2.637,190.0,189.97,7.679]
[1735690330857,1.8059,190.07,189.97,5.0416]
[1735690331058,2.6367,190.02,189.98,2.6372]
[1735690331461,1.8059,190.07,189.97,5.0416]
[1735690331658,2.6365,190.02,189.98,2.6369]
[1735690332357,1.8059,190.07,189.97,5.0416]
[1735690332559,1.91,190.1,190.02,13.31578678]
[1735690332756,1.91,190.1,190.02,16.43578678]
[1735690333659,1.91,190.1,190.02,19.07228678]
[1735690335257,3.7141,190.14,190.02,16.43578678]
[1735690335753,2.6357,190.09,190.04,2.6362]
[1735690336059,3.7141,190.14,190.04,2.6362]
[1735690336454,1.8821,190.14,190.05,13.31578678]
[1735690336859,1.9104,190.17,190.08,13.31578678]
[1735690337160,1.9104,190.17,190.09,5.7354]
[1735690337866,2.635,190.13,190.09,3.1]
[1735690338064,1.9104,190.17,190.09,3.1]
[1735690338463,2.6351,190.12,190.09,3.1]
[1735690340266,1.9104,190.17,190.09,3.1]
[1735690340466,2.6352,190.11,190.09,3.1]
[1735690343367,1.9455,190.19,190.09,3.1]
[1735690343567,1.9455,190.19,190.12,13.31578678]
[1735690344165,2.6345,190.17,190.14,2.6348]
[1735690344360,2.6345,190.17,190.12,13.31578678]
[1735690344361,2.6345,190.17,190.15,3.1]
[1735690344665,1.9455,190.19,190.15,3.1]
[1735690344666,2.6345,190.16,190.15,3.1]
[1735690346063,1.9455,190.19,190.09,13.31578678]
[1735690346264,1.9455,190.19,190.04,15.20268678]
[1735690346265,13.31578678,190.16,190.04,15.20268678]
[1735690346466,13.31578678,190.13,190.01,60.05432774]
[1735690346664,13.31578678,190.13,190.03,3.1]
[1735690346865,2.6362,190.04,190.03,3.1]
[1735690347269,3.1,190.12,190.03,3.1]
[1735690347463,2.636,190.05,190.03,3.1]
[1735690351972,1.884,190.11,190.03,3.1]
[1735690352161,1.884,190.11,190.01,13.31578678]
[1735690352365,1.884,190.11,190.01,16.41578678]
[1735690352366,1.8908,190.1,190.01,16.41578678]
[1735690353371,2.636,190.06,190.01,19.05228678]
[1735690354669,2.636,190.05,190.01,19.05228678]
[1735690354863,2.636,190.05,190.01,16.41578678]
[1735690355474,1.8908,190.1,190.01,13.31578678]
[1735690355676,2.6363,190.03,190.02,3.1]
[1735690357379,2.6365,190.02,190.0,3.1]
[1735690357879,2.6366,190.01,190.0,3.1]
[1735690360572,1.8908,190.1,190.0,3.1]
[1735690360573,2.6364,190.03,190.0,3.1]
[1735690361173,1.8908,190.1,190.01,13.31578678]
[1735690361368,1.884,190.11,190.04,13.31578678]
[1735690361568,1.8882,190.15,190.04,13.31578678]
[1735690361569,1.8882,190.15,190.05,3.1]
[1735690361770,2.6354,190.1,190.07,15.95148678]
[1735690362967,1.8452,190.16,190.11,2.6351]
[1735690363177,1.8452,190.16,190.11,19.05088678]
[1735690364471,2.6348,190.14,190.11,16.41578678]
[1735690365577,2.6347,190.15,190.11,19.05098678]
[1735690367576,2.6347,190.15,190.12,2.635]
[1735690370283,1.9284,190.21,190.11,16.41578678]
[1735690370583,1.9284,190.21,190.14,13.31578678]
[1735690370783,2.634,190.2,190.16,2.6344]
[1735690370975,2.634,190.2,190.16,5.7344]
[1735690371175,2.634,190.2,190.16,3.1]
[1735690371377,2.6338,190.21,190.16,3.1]
[1735690371887,2.6338,190.21,190.17,13.31578678]
[1735690372289,2.6338,190.21,190.17,15.95008678]
[1735690372683,2.634,190.2,190.17,15.95008678]
[1735690375992,2.6339,190.21,190.17,15.95008678]
[1735690376998,2.634,190.2,190.17,15.95008678]
[1735690379393,2.6338,190.22,190.18,2.6341]
[1735690379797,2.6339,190.21,190.18,2.6341]
[1735690380490,1.8196,190.26,190.17,13.31578678]
[1735690380694,2.634,190.2,190.17,15.95008678]
[1735690381205,1.8196,190.26,190.18,3.1]
[1735690381902,2.6338,190.21,190.18,3.1]
[1735690382994,1.8196,190.26,190.18,3.1]
[1735690383395,1.8196,190.26,190.2,13.31578678]
[1735690383595,2.6333,190.25,190.21,2.6338]
[1735690383899,3.1,190.31,190.21,2.6338]
[1735690384202,2.6328,190.28,190.21,2.6338]
[1735690384402,3.1,190.31,190.21,2.6338]
[1735690384598,8.9997,190.32,190.21,2.6338]
[1735690384797,2.6333,190.25,190.21,2.6338]
[1735690385199,8.9997,190.32,190.21,2.6338]
[1735690386404,2.6334,190.24,190.21,2.6338]
[1735690387597,8.9997,190.32,190.2,13.31578678]
[1735690387796,13.31578678,190.3,190.18,3.1]
[1735690388307,2.6337,190.23,190.19,2.634]
[1735690388804,2.6337,190.23,190.18,3.1]
[1735690389000,2.6334,190.24,190.21,2.6338]
[1735690390204,13.31578678,190.3,190.17,13.31578678]
[1735690390406,13.31578678,190.3,190.18,3.1]
[1735690390908,13.31578678,190.3,190.19,2.634]
[1735690391298,2.6337,190.23,190.2,3.1]
[1735690391502,13.31578678,190.3,190.2,3.1]
[1735690391805,2.6332,190.26,190.2,16.41578678]
[1735690392000,3.7349,190.32,190.2,16.41578678]
[1735690392198,8.5076178,190.31,190.24,8.5076178]
[1735690392404,3.7349,190.32,190.2,3.1]
[1735690392605,8.5076178,190.29,190.2,11.6076178]
[1735690393503,2.6335,190.24,190.2,11.6076178]
[1735690394006,2.6335,190.24,190.22,8.5076178]
[1735690395204,8.5076178,190.31,190.22,11.1412178]
[1735690395404,8.5076178,190.31,190.24,8.5076178]
[1735690396107,2.6333,190.25,190.24,8.5076178]
[1735690396805,2.6333,190.25,190.22,11.1412178]
[1735690399313,12.2425178,190.32,190.24,8.5076178]
[1735690400212,12.2425178,190.32,190.26,8.5076178]
[1735690400213,3.7349,190.32,190.26,8.5076178]
[1735690400406,3.7349,190.32,190.26,11.6076178]
[1735690400805,2.6325,190.31,190.26,11.6076178]
[1735690401010,3.7349,190.32,190.26,11.6076178]
[1735690401912,2.6325,190.31,190.26,11.6076178]
[1735690402109,3.7349,190.32,190.26,11.6076178]
[1735690402311,1.8259,190.32,190.28,8.5076178]
[1735690402519,2.6324,190.31,190.3,8.5076178]
[1735690405818,2.6327,190.29,190.28,8.5076178]
[1735690406312,2.632,190.35,190.28,8.5076178]
[1735690406516,8.5076178,190.37,190.3,8.5076178]
[1735690407515,2.6324,190.31,190.3,8.5076178]
[1735690407717,8.5076178,190.35,190.29,3.1]
[1735690408117,1.9254,190.34,190.29,3.1]
[1735690408514,2.6326,190.3,190.29,3.1]
[1735690410119,8.5076178,190.37,190.29,3.1]
[1735690410320,2.6325,190.31,190.3,8.5076178]
[1735690411023,8.5076178,190.35,190.28,8.5076178]
[1735690411319,8.5076178,190.33,190.26,8.5076178]
[1735690411620,2.633,190.27,190.26,8.5076178]
[1735690412317,2.6329,190.28,190.26,8.5076178]
[1735690412623,2.6329,190.28,190.25,3.1]
[1735690412624,2.6329,190.28,190.27,8.5076178]
[1735690418124,2.6331,190.26,190.25,3.1]
[1735690418626,2.6333,190.25,190.24,8.5076178]
[1735690419727,8.5076178,190.29,190.22,8.5076178]
[1735690419925,2.6337,190.23,190.22,8.5076178]
[1735690421019,8.5076178,190.27,190.2,8.5076178]
[1735690421222,2.6341,190.2,190.19,3.1]
[1735690421425,2.6341,190.2,190.19,11.6076178]
[1735690422329,2.6341,190.2,190.19,8.5076178]
[1735690422632,2.6341,190.2,190.19,11.6076178]
[1735690424532,8.5076178,190.27,190.19,11.6076178]
[1735690424733,8.5076178,190.29,190.22,8.5076178]
[1735690424933,3.1,190.3,190.22,8.5076178]
[1735690425126,1.8087,190.32,190.28,8.5076178]
[1735690426435,2.6327,190.3,190.28,8.5076178]
[1735690427036,1.8087,190.32,190.28,8.5076178]
[1735690427037,2.6327,190.29,190.28,8.5076178]
[1735690427832,1.8087,190.32,190.26,11.6076178]
[1735690428032,2.6329,190.28,190.26,11.6076178]
[1735690431848,2.633,190.27,190.26,11.6076178]
[1735690432638,21.90519587,190.43,190.26,3.1]
[1735690432843,15.16876226,190.44,190.29,5.24062411]
[1735690433043,15.16876226,190.44,190.4,8.5076178]
[1735690433243,23.67638006,190.44,190.31,13.67482455]
[1735690433539,26.77638006,190.44,190.36,8.5076178]
[1735690433745,18.26876226,190.44,190.36,8.5076178]
[1735690433942,2.6313,190.4,190.36,8.5076178]
[1735690434146,26.77638006,190.44,190.3,3.1]
[1735690434147,11.6076178,190.44,190.3,3.1]
[1735690434343,8.5076178,190.44,190.34,8.5076178]
[1735690434542,8.5076178,190.42,190.3,3.1]
[1735690434848,3.1,190.41,190.33,183.84818405]
[1735690435146,2.6315,190.38,190.33,183.84818405]
[1735690435347,2.6315,190.38,190.31,175.34056625]
[1735690435545,2.6315,190.38,190.33,8.5076178]
[1735690436249,2.6315,190.38,190.32,87.7172538]
[1735690438346,5.6499,190.43,190.33,18.62213442]
[1735690438550,2.6314,190.4,190.33,18.62213442]
[1735690438853,2.6314,190.4,190.33,13.27918894]
[1735690439047,3.1,190.42,190.33,13.27918894]
[1735690439347,2.6314,190.39,190.33,13.27918894]
[1735690439649,2.6314,190.39,190.33,100.99644274]
[1735690440050,2.6313,190.4,190.33,100.99644274]
[1735690440246,3.1,190.42,190.33,100.99644274]
[1735690441151,2.6313,190.4,190.33,100.99644274]
[1735690441350,5.6499,190.43,190.36,13.27918894]
[1735690441550,3.8566,190.43,190.36,13.27918894]
[1735690441751,2.6311,190.41,190.36,13.27918894]
[1735690442454,2.6313,190.4,190.36,13.27918894]
[1735690443052,2.6313,190.4,190.36,100.99644274]
[1735690443355,2.6311,190.41,190.36,100.99644274]
[1735690444257,2.6311,190.41,190.36,20.58896009]
[1735690445656,3.8566,190.43,190.36,20.58896009]
[1735690445853,2.6313,190.4,190.36,20.58896009]
[1735690446656,2.6313,190.4,190.37,5.91105039]
[1735690446961,2.6311,190.42,190.37,8.54275039]
[1735690447356,2.6311,190.42,190.39,13.27918894]
[1735690447556,2.6311,190.41,190.39,13.27918894]
[1735690448355,3.633,190.48,190.39,13.27918894]
[1735690448356,2.6308,190.44,190.39,13.27918894]
[1735690448557,3.633,190.48,190.42,13.27918894]
[1735690448856,2.6306,190.45,190.42,13.27918894]
[1735690450459,5.1915,190.56,190.42,13.27918894]
[1735690450761,5.1915,190.56,190.43,3.22]
[1735690450962,1.886,190.55,190.43,3.22]
[1735690451662,1.886,190.55,190.43,5.8508]
[1735690451857,1.886,190.55,190.43,3.22]
[1735690453062,1.886,190.55,190.44,2.6306]
[1735690453263,1.886,190.55,190.45,13.27918894]
[1735690453963,2.6296,190.52,190.47,2.6303]
[1735690454767,1.886,190.55,190.45,13.27918894]
[1735690454960,2.6303,190.47,190.45,3.22]
[1735690456262,1.886,190.55,190.42,187.69173862]
[1735690456564,13.27918894,190.53,190.42,190.91173862]
[1735690456967,16.49918894,190.53,190.42,190.91173862]
[1735690457164,2.6299,190.5,190.42,16.49918894]
[1735690457366,16.49918894,190.53,190.42,16.49918894]
[1735690458465,2.6303,190.48,190.43,2.6308]
[1735690459166,3.22,190.53,190.43,2.6308]
[1735690459372,2.6303,190.47,190.43,2.6308]
[1735690463464,2.6303,190.47,190.42,16.49918894]
[1735690463681,2.6303,190.47,190.44,2.6307]
[1735690463970,2.6302,190.48,190.42,16.49918894]
[1735690464170,2.6302,190.48,190.44,2.6306]
[1735690464370,2.6302,190.48,190.46,8.48755579]
[1735690466471,2.6303,190.47,190.46,8.48755579]
[1735690466867,8.48755579,190.63,190.46,8.48755579]
[1735690467065,8.48755579,190.57,190.45,3.22]
[1735690467271,8.48755579,190.57,190.51,8.48755579]
[1735690467468,10.44265579,190.59,190.51,8.48755579]
[1735690467973,2.6292,190.56,190.52,8.48755579]
[1735690468174,10.44265579,190.59,190.52,8.48755579]
[1735690468672,3.22,190.58,190.52,8.48755579]
[1735690469269,2.6293,190.55,190.52,8.48755579]
[1735690470974,2.6292,190.56,190.52,11.11715579]